bitfinex/quotes_SOLUSD_20240813
["timestamp","ask_amount","ask_price","bid_price","bid_amount"]
[1723524364370,45.0,144.78,144.74,6.9089]
[1723524365179,51.907,144.78,144.73,6.9093]
[1723524365577,45.0,144.78,144.73,6.9093]
[1723524367257,6.9062,144.8,144.7,33.62734199]
[1723524367482,6.39108,144.81,144.76,6.9079]
[1723524367668,45.12549,144.8,144.76,6.9079]
[1723524367986,45.12549,144.8,144.75,6.9083]
[1723524368162,45.12549,144.8,144.74,6.9088]
[1723524368360,0.12549,144.79,144.74,6.9088]
[1723524368555,6.907,144.78,144.73,6.9093]
[1723524371296,52.03299,144.77,144.72,6.9097]
[1723524371485,15.8748,144.76,144.72,6.9097]
[1723524373084,15.8748,144.76,144.73,6.9091]
[1723524373663,22.7832,144.76,144.71,6.9099]
[1723524373983,22.7832,144.76,144.72,6.9098]
[1723524373984,15.8748,144.76,144.72,6.9098]
[1723524375526,15.8748,144.76,144.66,32.12]
[1723524375697,45.0,144.75,144.71,6.9103]
[1723524376014,45.0,144.75,144.72,6.9098]
[1723524376196,22.7828,144.76,144.72,6.9098]
[1723524376511,15.8748,144.76,144.72,6.9098]
[1723524377211,15.8748,144.76,144.73,6.9093]
[1723524377393,15.8748,144.76,144.72,6.9098]
[1723524377592,22.7828,144.76,144.72,6.9098]
[1723524377910,22.7828,144.76,144.71,6.9102]
[1723524378831,15.8748,144.76,144.71,6.9102]
[1723524378998,15.8748,144.76,144.72,1.38189415]
[1723524379197,6.9065,144.79,144.74,6.9088]
[1723524380297,15.2113,144.8,144.71,1.38171944]
[1723524380503,15.2113,144.8,144.76,6.9079]
[1723524381387,23.1095,144.84,144.8,6.9059]
[1723524381597,23.1098,144.84,144.79,6.9064]
[1723524381809,6.9047,144.83,144.78,6.9069]
[1723524382114,6.9051,144.82,144.78,6.9069]
[1723524382622,16.2053,144.84,144.73,0.12549]
[1723524382796,6.9062,144.8,144.75,6.908]
[1723524383309,6.9056,144.81,144.76,6.9078]
[1723524383511,6.9052,144.82,144.77,6.9071]
[1723524384921,45.50196,144.83,144.77,6.9071]
[1723524385292,45.50196,144.83,144.73,0.25098]
[1723524385293,45.0,144.83,144.8,6.906]
[1723524385493,16.2053,144.84,144.76,32.24549]
[1723524385805,16.2053,144.84,144.76,32.12]
[1723524386120,6.9051,144.82,144.76,6.9075]
[1723524386421,6.9051,144.82,144.75,1.38139474]
[1723524386712,16.2053,144.84,144.75,20.0]
[1723524387103,6.9052,144.82,144.75,20.0]
[1723524387308,6.9052,144.82,144.75,21.38135455]
[1723524387910,6.9052,144.82,144.75,34.22135455]
[1723524388109,16.2053,144.84,144.75,34.22135455]
[1723524388424,16.2053,144.84,144.77,12.84]
[1723524389732,23.1098,144.84,144.79,6.9062]
[1723524389931,45.50196,144.83,144.75,32.84]
[1723524390148,12.84,144.81,144.74,6.9088]
[1723524390319,6.9065,144.79,144.74,6.9088]
[1723524390516,58.34196,144.83,144.75,1.38157273]
[1723524390821,45.0,144.83,144.75,14.22157273]
[1723524391137,45.0,144.83,144.79,6.9062]
[1723524391439,23.1095,144.84,144.79,6.9062]
[1723524391643,23.1095,144.84,144.8,6.9059]
[1723524391942,23.1095,144.84,144.79,6.9064]
[1723524394532,6.9047,144.83,144.79,6.9064]
[1723524396422,23.1096,144.84,144.79,6.9064]
[1723524399439,20.0,144.9,144.76,6.2805]
[1723524399440,15.8248,144.88,144.81,12.84]
[1723524399741,15.8248,144.88,144.82,1.38080828]
[1723524399922,6.1905,144.9,144.81,12.84]
[1723524400326,6.9035,144.86,144.81,6.9051]
[1723524400518,6.9028,144.87,144.82,8.28593191]
[1723524400737,6.9028,144.87,144.82,6.905]
[1723524401044,12.84,144.89,144.8,16.6166]
[1723524401236,15.8248,144.91,144.83,12.84]
[1723524401422,6.9018,144.89,144.84,8.28431071]
[1723524401748,6.9018,144.89,144.84,6.9037]
[1723524403636,6.9023,144.88,144.84,6.9037]
[1723524404018,6.9018,144.89,144.84,6.9037]
[1723524404819,15.8248,144.91,144.83,12.84]
[1723524405024,6.9008,144.91,144.86,6.9031]
[1723524405649,6.8999,144.93,144.88,6.9021]
[1723524405947,6.8994,144.94,144.89,8.28185673]
[1723524406444,6.8998,144.93,144.89,8.28185673]
[1723524406828,6.8994,144.94,144.89,6.9017]
[1723524407058,6.899,144.95,144.9,8.28138421]
[1723524407359,15.0695,144.99,144.92,6.8999]
[1723524407651,15.0695,144.99,144.92,8.27980551]
[1723524407866,6.8983,144.97,144.92,8.27980551]
[1723524408018,6.8983,144.97,144.92,6.8999]
[1723524408532,15.0695,144.99,144.91,19.7403]
[1723524408729,6.8994,144.94,144.89,19.7415]
[1723524409241,6.8994,144.94,144.89,6.9015]
[1723524410648,6.8994,144.94,144.9,6.9012]
[1723524410828,6.899,144.95,144.9,6.9012]
[1723524411352,6.8985,144.96,144.92,6.9003]
[1723524412328,6.898,144.97,144.92,6.9003]
[1723524413052,6.898,144.97,144.93,6.8998]
[1723524413753,6.8985,144.96,144.91,6.9007]
[1723524416261,6.899,144.95,144.91,6.9007]
[1723524416432,6.899,144.95,144.9,6.9012]
[1723524416956,6.8985,144.96,144.91,6.9005]
[1723524417131,0.12549,144.97,144.92,6.8999]
[1723524417132,6.898,144.97,144.92,6.8999]
[1723524419651,6.8986,144.96,144.91,6.9007]
[1723524419828,6.899,144.95,144.91,6.9007]
[1723524420731,15.0695,144.99,144.92,8.28031626]
[1723524420943,45.12549,144.98,144.92,6.9003]
[1723524421856,6.8983,144.97,144.92,6.9003]
[1723524422461,6.8991,144.95,144.91,6.9008]
[1723524423131,6.8985,144.96,144.91,6.9008]
[1723524425063,6.8994,144.94,144.89,6.9016]
[1723524425664,12.84,144.94,144.88,6.9021]
[1723524425951,12.84,144.94,144.84,6.6378]
[1723524425952,6.9015,144.9,144.84,6.6378]
[1723524426362,6.9015,144.9,144.85,6.9033]
[1723524426752,60.94806,144.93,144.87,6.9026]
[1723524427250,60.94806,144.93,144.88,6.9021]
[1723524427251,67.84836,144.93,144.88,6.9021]
[1723524427439,67.72287,144.93,144.88,6.9021]
[1723524427832,6.9003,144.92,144.88,6.9021]
[1723524428340,6.9003,144.92,144.87,6.9026]
[1723524428538,60.82257,144.93,144.86,6.9031]
[1723524428745,6.9013,144.9,144.85,6.9035]
[1723524428953,7.02619,144.92,144.87,6.9023]
[1723524429142,6.9007,144.92,144.87,6.9023]
[1723524430248,6.9007,144.92,144.88,6.9021]
[1723524430754,6.9007,144.92,144.87,6.9026]
[1723524430958,6.9009,144.91,144.87,6.9026]
[1723524431761,6.9009,144.91,144.84,6.6378]
[1723524431762,6.9017,144.9,144.84,6.6378]
[1723524432062,6.9009,144.91,144.84,6.6378]
[1723524432242,6.9009,144.91,144.86,6.9028]
[1723524433146,6.9009,144.91,144.87,6.9026]
[1723524433872,15.4461,144.93,144.87,12.84]
[1723524434059,35.2536,144.97,144.9,6.9009]
[1723524434252,6.8989,144.95,144.9,6.9009]
[1723524434759,6.8999,144.93,144.89,6.9017]
[1723524434953,6.9007,144.92,144.85,12.84]
[1723524435344,6.9,144.93,144.86,1.38042484]
[1723524435947,6.9,144.93,144.88,6.902]
[1723524436868,6.9003,144.92,144.88,6.902]
[1723524437066,6.8999,144.93,144.89,6.9017]
[1723524437361,7.02499,144.94,144.89,6.9017]
[1723524438762,45.0,144.93,144.87,6.9023]
[1723524438969,45.12549,144.94,144.87,6.9023]
[1723524439358,6.9003,144.92,144.87,6.9023]
[1723524439876,6.9008,144.91,144.87,6.9023]
[1723524440078,6.9016,144.9,144.84,6.6378]
[1723524440372,6.9016,144.9,144.85,6.9032]
[1723524440584,6.9018,144.89,144.85,6.9032]
[1723524441276,45.12549,144.88,144.81,6.3431]
[1723524441493,6.9051,144.82,144.78,6.9065]
[1723524441783,12.84,144.83,144.76,15.0264]
[1723524441949,12.84,144.83,144.74,12.84]
[1723524442153,15.36309,144.84,144.74,12.84]
[1723524442154,28.32858,144.84,144.74,12.84]
[1723524442368,45.0,144.83,144.75,1.38141402]
[1723524442563,45.0,144.83,144.79,6.9064]
[1723524443179,51.9046,144.83,144.78,6.9069]
[1723524443385,45.0,144.83,144.79,6.9065]
[1723524443549,45.0,144.83,144.78,6.9069]
[1723524444874,51.9047,144.83,144.78,6.9069]
[1723524446760,51.9047,144.83,144.79,6.9065]
[1723524446965,51.9047,144.83,144.78,6.9069]
[1723524447472,0.12549,144.82,144.73,6.3431]
[1723524447658,0.50196,144.82,144.73,6.3431]
[1723524448471,0.50196,144.82,144.73,7.72465557]
[1723524448678,0.50196,144.82,144.73,6.3431]
[1723524448884,32.60196,144.82,144.72,15.0264]
[1723524449071,0.12549,144.8,144.72,15.0264]
[1723524449270,0.25098,144.8,144.72,15.0264]
[1723524449453,0.12549,144.8,144.76,6.9078]
[1723524449664,51.9059,144.81,144.76,6.9078]
[1723524451585,6.906,144.8,144.76,6.9078]
[1723524451781,6.906,144.8,144.75,6.9083]
[1723524452083,0.12549,144.8,144.7,32.1]
[1723524452284,6.9076,144.77,144.72,6.9095]
[1723524453776,6.9069,144.79,144.7,32.1]
[1723524454097,7.15708,144.8,144.75,6.9084]
[1723524454257,45.0,144.79,144.75,6.9084]
[1723524454457,51.9066,144.79,144.74,6.9088]
[1723524454886,6.9075,144.77,144.72,6.9098]
[1723524455359,6.9071,144.78,144.73,6.9093]
[1723524456068,6.9075,144.77,144.73,6.9093]
[1723524456507,6.9075,144.77,144.72,6.9097]
[1723524456797,51.908,144.76,144.7,6.9105]
[1723524457081,6.9085,144.75,144.7,6.9105]
[1723524457253,6.9085,144.75,144.71,6.9103]
[1723524457460,52.03349,144.76,144.71,6.9103]
[1723524458086,54.19339,144.78,144.73,6.9093]
[1723524458087,22.09339,144.78,144.73,6.9093]
[1723524458264,15.3743,144.78,144.74,6.9085]
[1723524458459,15.3743,144.78,144.71,1.38171294]
[1723524459866,15.3743,144.78,144.75,6.9083]
[1723524460179,22.2814,144.78,144.73,6.909]
[1723524460565,22.2814,144.78,144.74,6.9088]
[1723524460762,15.3743,144.78,144.74,6.9088]
[1723524461056,22.2813,144.78,144.74,6.9088]
[1723524461857,15.3743,144.78,144.74,6.9088]
[1723524462292,6.906,144.8,144.72,32.1]
[1723524462475,6.906,144.8,144.75,6.9083]
[1723524462793,6.906,144.8,144.76,6.9079]
[1723524463105,37.20855791,144.82,144.76,6.9079]
[1723524463393,7.03119,144.81,144.76,6.9079]
[1723524463683,6.9062,144.8,144.75,6.9083]
[1723524463861,7.03149,144.81,144.76,6.9078]
[1723524464062,0.12549,144.81,144.77,6.9074]
[1723524464261,7.03119,144.81,144.76,6.9078]
[1723524466191,15.3743,144.82,144.79,6.9063]
[1723524466562,15.3743,144.82,144.74,12.84]
[1723524466760,6.9057,144.81,144.76,6.9079]
[1723524467391,6.9062,144.8,144.75,6.9084]
[1723524468266,6.9062,144.8,144.76,6.9078]
[1723524469672,6.9057,144.81,144.76,6.9078]
[1723524470599,6.906,144.8,144.75,6.9083]
[1723524471097,6.906,144.8,144.76,6.9079]
[1723524471489,35.24529,144.82,144.77,6.9075]
[1723524471692,45.50196,144.81,144.77,6.9075]
[1723524472192,45.12549,144.81,144.77,6.9075]
[1723524473993,52.03109,144.81,144.77,6.9075]
[1723524474199,45.12549,144.81,144.77,6.9075]
[1723524476420,15.3743,144.82,144.79,6.9065]
[1723524476604,22.2369,144.85,144.78,14.22144944]
[1723524476974,15.3332,144.85,144.79,1.38113704]
[1723524477178,6.9033,144.86,144.8,14.22100965]
[1723524477380,6.9028,144.87,144.82,6.9049]
[1723524478280,51.9033,144.86,144.82,6.9049]
[1723524479089,6.9028,144.87,144.82,6.9049]
[1723524479500,15.3332,144.88,144.78,6.5623]
[1723524479501,28.1732,144.88,144.78,6.5623]
[1723524479677,28.1732,144.88,144.81,6.9055]
[1723524479678,6.9038,144.85,144.81,6.9055]
[1723524480705,15.3332,144.88,144.81,6.9055]
[1723524480706,6.9033,144.86,144.81,6.9055]
[1723524481771,6.9037,144.85,144.81,6.9055]
[1723524482778,28.1732,144.88,144.79,1.3810465]
[1723524483002,28.1732,144.88,144.84,6.9041]
[1723524483003,22.2358,144.88,144.84,6.9041]
[1723524483276,15.3332,144.88,144.82,12.84]
[1723524483503,15.3332,144.88,144.85,6.9033]
[1723524484772,15.3332,144.92,144.85,6.9035]
[1723524484971,6.9014,144.9,144.85,6.9035]
[1723524485877,15.3332,144.92,144.83,1.38068518]
[1723524486200,6.9019,144.89,144.84,6.9039]
[1723524486383,12.84,144.91,144.83,6.9042]
[1723524486711,6.9023,144.88,144.83,6.9042]
[1723524487917,6.9023,144.88,144.84,6.9041]
[1723524488515,6.9027,144.87,144.81,28.7342]
[1723524488718,6.9027,144.87,144.81,15.8942]
[1723524489417,12.84,144.89,144.83,6.9043]
[1723524489710,51.9023,144.88,144.81,15.8942]
[1723524490801,51.9023,144.88,144.84,6.9041]
[1723524491007,51.9023,144.88,144.81,15.8942]
[1723524491910,51.9023,144.88,144.83,6.9045]
[1723524492096,51.9023,144.88,144.84,6.904]
[1723524494022,51.9023,144.88,144.81,15.8942]
[1723524494023,15.3332,144.92,144.83,12.84]
[1723524494187,20.0,144.91,144.83,12.84]
[1723524494696,6.9023,144.88,144.84,6.9041]
[1723524495090,6.9017,144.9,144.86,6.9031]
[1723524495899,0.12549,144.91,144.87,6.9027]
[1723524496096,6.8994,144.94,144.89,6.9017]
[1723524496312,6.8994,144.94,144.9,6.9012]
[1723524497309,16.4976,144.96,144.88,1.38050257]
[1723524497520,6.899,144.95,144.9,6.9008]
[1723524497923,6.8995,144.94,144.89,6.9017]
[1723524498122,6.8999,144.93,144.88,6.9021]
[1723524498427,29.3376,144.96,144.84,19.3231]
[1723524498428,12.84,144.94,144.84,19.3231]
[1723524498601,12.84,144.92,144.84,19.3231]
[1723524498798,6.9013,144.9,144.85,6.9036]
[1723524500216,45.12549,144.91,144.81,15.8942]
[1723524500431,6.9028,144.87,144.82,6.905]
[1723524500720,6.9028,144.87,144.8,6.2256]
[1723524500721,6.9028,144.87,144.83,6.9045]
[1723524501240,6.9018,144.89,144.84,6.9041]
[1723524501402,15.061,144.9,144.87,6.9023]
[1723524501729,15.061,144.9,144.82,32.07]
[1723524502536,15.061,144.9,144.86,6.903]
[1723524503433,6.9004,144.92,144.87,6.9027]
[1723524503613,16.3341,144.94,144.86,32.07]
[1723524503932,16.3341,144.94,144.84,47.3009]
[1723524504105,6.8999,144.93,144.88,6.902]
[1723524504305,23.2336,144.94,144.89,6.9016]
[1723524505018,6.8999,144.93,144.88,6.9022]
[1723524505233,16.3341,144.94,144.87,6.9026]
[1723524505234,6.9004,144.92,144.87,6.9026]
[1723524505611,16.3341,144.94,144.89,6.9016]
[1723524505612,23.2338,144.94,144.89,6.9016]
[1723524505809,6.9,144.93,144.89,6.9016]
[1723524506515,23.2336,144.94,144.89,6.9016]
[1723524509609,23.2336,144.94,144.9,6.9011]
[1723524509610,16.3341,144.94,144.9,6.9011]
[1723524510739,23.2336,144.94,144.89,6.9017]
[1723524511838,6.8999,144.93,144.89,6.9017]
[1723524514039,23.2336,144.94,144.89,6.9017]
[1723524517043,16.3341,144.94,144.88,6.9022]
[1723524517349,6.9013,144.9,144.86,6.903]
[1723524517847,6.9009,144.91,144.86,6.903]
[1723524518817,6.9009,144.91,144.87,6.9026]
[1723524519225,0.12549,144.92,144.82,38.534]
[1723524519428,6.9023,144.88,144.84,6.904]
[1723524519833,6.9018,144.89,144.85,6.9035]
[1723524520044,7.02689,144.9,144.85,6.9035]
[1723524520340,7.27687,144.92,144.81,1.38081814]
[1723524520546,7.27687,144.92,144.82,32.07]
[1723524520751,52.02639,144.91,144.87,6.9025]
[1723524521483,52.02639,144.91,144.86,6.9031]
[1723524525853,6.9014,144.9,144.86,6.9031]
[1723524529443,6.9026,144.88,144.84,1.38062458]
[1723524529629,6.9026,144.88,144.84,6.904]
[1723524531347,6.9019,144.89,144.84,6.904]
[1723524531651,12.83,144.89,144.83,6.9046]
[1723524531865,60.3263,144.88,144.81,20.0]
[1723524532157,60.3263,144.88,144.8,6.9057]
[1723524532158,6.9041,144.84,144.8,6.9057]
[1723524532453,6.9055,144.82,144.77,6.9073]
[1723524532830,6.9056,144.81,144.77,6.9073]
[1723524533027,6.9061,144.8,144.76,6.9079]
[1723524533234,6.9061,144.8,144.75,6.908]
[1723524533453,22.2318,144.82,144.77,6.9074]
[1723524533641,45.0,144.81,144.77,6.9074]
[1723524535262,22.2318,144.82,144.77,6.9074]
[1723524536042,6.9056,144.81,144.76,6.9079]
[1723524538035,6.9061,144.8,144.74,6.3086]
[1723524538236,45.12549,144.79,144.72,16.0631]
[1723524538556,45.12549,144.79,144.69,6.5937]
[1723524538557,6.9075,144.77,144.69,21.6247]
[1723524539127,45.12549,144.79,144.7,6.9104]
[1723524539332,6.9076,144.77,144.72,6.9097]
[1723524539542,6.9076,144.77,144.73,6.9093]
[1723524540038,6.907,144.78,144.73,6.9093]
[1723524541253,51.9062,144.8,144.75,6.9081]
[1723524541550,45.0,144.8,144.74,6.9088]
[1723524541749,7.03209,144.79,144.74,6.9088]
[1723524541981,45.0,144.8,144.72,32.11]
[1723524542177,45.0,144.8,144.73,1.38159614]
[1723524542369,15.3263,144.82,144.77,6.9073]
[1723524542575,22.2315,144.82,144.78,6.907]
[1723524542948,22.2315,144.82,144.77,6.9073]
[1723524543545,15.3263,144.82,144.72,32.11]
[1723524544284,45.0,144.81,144.72,32.11]
[1723524544678,45.0,144.81,144.78,6.9069]
[1723524544864,15.3263,144.82,144.78,6.9069]
[1723524545257,22.2315,144.82,144.77,6.9073]
[1723524545456,6.9056,144.81,144.76,6.9079]
[1723524546258,22.2315,144.82,144.77,6.9073]
[1723524547584,15.3263,144.82,144.78,6.9069]
[1723524548380,15.3263,144.82,144.79,6.9065]
[1723524548762,6.9046,144.83,144.79,6.9065]
[1723524548964,6.9051,144.82,144.78,6.9069]
[1723524549165,6.9057,144.81,144.76,6.9078]
[1723524550762,38.6144,144.85,144.75,6.9083]
[1723524550763,32.11,144.83,144.75,6.9083]
[1723524550964,45.12549,144.82,144.75,6.9083]
[1723524551264,45.12549,144.82,144.71,6.66749]
[1723524551265,6.9071,144.78,144.73,6.909]
[1723524551465,6.9071,144.78,144.71,6.542]
[1723524551466,6.9066,144.79,144.72,1.38175301]
[1723524551678,15.0466,144.8,144.75,6.908]
[1723524552284,21.9526,144.8,144.75,6.908]
[1723524553182,21.9526,144.8,144.73,1.38156744]
[1723524553363,21.9526,144.8,144.76,6.9078]
[1723524553873,6.9065,144.79,144.75,6.9083]
[1723524554088,6.9065,144.79,144.74,6.9088]
[1723524554261,6.907,144.78,144.74,6.9088]
[1723524556495,15.0466,144.8,144.71,6.91]
[1723524556496,0.12549,144.79,144.71,6.91]
[1723524556673,6.908,144.76,144.72,6.9098]
[1723524557365,6.908,144.76,144.71,6.9102]
[1723524559087,6.908,144.76,144.72,6.9097]
[1723524561280,6.9076,144.77,144.72,6.9097]
[1723524561775,9.10430975,144.79,144.71,12.85]
[1723524561973,45.0,144.78,144.72,1.3817831]
[1723524562178,15.0466,144.8,144.73,12.85]
[1723524562491,15.0466,144.8,144.75,6.9083]
[1723524562492,21.953,144.8,144.75,6.9083]
[1723524562790,15.0466,144.8,144.74,6.9088]
[1723524563585,45.0,144.79,144.74,6.9088]
[1723524563889,6.907,144.78,144.74,6.9088]
[1723524564696,51.9066,144.79,144.74,6.9088]
[1723524564905,45.0,144.79,144.72,12.85]
[1723524565088,51.9066,144.79,144.75,6.9083]
[1723524565400,15.0466,144.8,144.74,12.85]
[1723524565604,15.0466,144.8,144.76,6.9079]
[1723524565798,15.0466,144.8,144.77,6.9074]
[1723524566093,6.9051,144.82,144.78,6.907]
[1723524566887,6.9056,144.81,144.77,6.9073]
[1723524567679,6.9056,144.81,144.76,6.9078]
[1723524568088,13.10098,144.82,144.74,19.7586]
[1723524568398,45.0,144.81,144.74,19.7586]
[1723524568614,6.9066,144.79,144.75,6.9083]
[1723524569571,51.906,144.81,144.76,6.9078]
[1723524569787,6.906,144.81,144.74,12.85]
[1723524569966,6.906,144.81,144.76,6.9078]
[1723524570571,6.9061,144.8,144.76,6.9078]
[1723524570775,0.12549,144.81,144.75,6.9083]
[1723524570972,6.9062,144.8,144.75,6.9083]
[1723524571893,0.12549,144.81,144.72,12.85]
[1723524572102,6.9075,144.77,144.73,6.9089]
[1723524572393,6.9075,144.77,144.7,12.85]
[1723524573980,6.9089,144.74,144.69,13.3856]
[1723524574284,6.908,144.76,144.69,6.4745]
[1723524574478,0.12549,144.77,144.7,1.38202602]
[1723524574694,45.12549,144.77,144.71,1.38182917]
[1723524574908,45.0,144.77,144.71,1.38182917]
[1723524575080,23.1787,144.78,144.71,1.38182917]
[1723524575717,23.1787,144.78,144.72,1.38178835]
[1723524576003,23.1787,144.78,144.73,6.9093]
[1723524578212,6.9075,144.77,144.73,6.9093]
[1723524579705,16.2716,144.78,144.69,6.4745]
[1723524580007,45.12549,144.77,144.71,6.9102]
[1723524580213,6.9084,144.75,144.7,6.9108]
[1723524580383,6.9084,144.75,144.67,42.29877215]
[1723524580384,52.03299,144.77,144.71,1.3820584]
[1723524580583,23.1787,144.78,144.74,6.9089]
[1723524580785,23.1787,144.78,144.69,32.13]
[1723524580786,22.5383,144.82,144.77,6.9075]
[1723524581083,6.9038,144.85,144.81,6.9055]
[1723524581389,22.5364,144.86,144.82,6.9051]
[1723524581621,22.5364,144.86,144.81,6.9055]
[1723524583009,6.9036,144.85,144.8,6.906]
[1723524583820,6.9043,144.84,144.79,6.9064]
[1723524584203,6.9037,144.85,144.8,6.906]
[1723524584503,22.5363,144.86,144.81,8.28655462]
[1723524584703,22.5363,144.86,144.81,6.9055]
[1723524585001,6.9029,144.87,144.82,6.9051]
[1723524585891,6.9032,144.86,144.81,6.9055]
[1723524587014,6.9032,144.86,144.79,15.3436]
[1723524587015,6.9037,144.85,144.8,6.906]
[1723524587408,6.9028,144.87,144.82,6.905]
[1723524587595,6.9028,144.87,144.79,15.3436]
[1723524587799,6.9033,144.86,144.81,6.9055]
[1723524588516,6.9027,144.87,144.82,6.9048]
[1723524589209,6.9032,144.86,144.82,6.9048]
[1723524589393,6.9032,144.86,144.81,6.9055]
[1723524593120,6.9026,144.88,144.83,6.9042]
[1723524593299,0.12549,144.89,144.79,32.13]
[1723524593300,6.9032,144.86,144.79,32.13]
[1723524594912,6.9032,144.86,144.82,6.905]
[1723524595284,6.9032,144.86,144.76,0.12549]
[1723524595285,23.3121,144.9,144.85,6.9036]
[1723524595618,16.4107,144.9,144.86,6.9031]
[1723524596194,16.4107,144.9,144.83,12.83]
[1723524596536,6.9024,144.88,144.84,6.904]
[1723524598291,6.9024,144.88,144.81,34.7099]
[1723524600322,16.4107,144.9,144.81,34.7099]
[1723524600323,23.3123,144.9,144.81,34.7099]
[1723524600496,16.4107,144.9,144.83,12.83]
[1723524600817,16.4107,144.9,144.84,1.38061831]
[1723524601389,16.4107,144.9,144.86,6.9031]
[1723524602722,6.9018,144.89,144.84,6.9037]
[1723524603219,23.3121,144.9,144.85,6.9035]
[1723524603413,23.3121,144.9,144.86,6.9031]
[1723524603590,23.3121,144.9,144.83,12.83]
[1723524603792,6.9022,144.88,144.83,6.9045]
[1723524604117,6.9027,144.87,144.83,6.9045]
[1723524604293,6.9023,144.88,144.83,6.9045]
[1723524607710,45.0,144.89,144.81,12.83]
[1723524608104,51.9021,144.89,144.84,6.904]
[1723524608708,6.9024,144.88,144.84,6.904]
[1723524611999,45.0,144.89,144.85,6.9034]
[1723524612311,23.3121,144.9,144.85,6.9034]
[1723524612900,16.4107,144.9,144.87,6.9026]
[1723524613304,6.9003,144.93,144.86,1.38050964]
[1723524613515,6.9004,144.92,144.88,6.9021]
[1723524615436,6.9009,144.91,144.84,6.5692]
[1723524615638,6.9009,144.91,144.86,6.9028]
[1723524616735,6.9009,144.91,144.87,6.9026]
[1723524618435,52.15238,144.9,144.85,6.9033]
[1723524621436,52.15238,144.9,144.86,6.9032]
[1723524621629,52.15238,144.9,144.83,1.38075644]
[1723524621807,51.34868,144.9,144.8,6.4692]
[1723524622007,51.34868,144.9,144.78,15.6784]
[1723524622008,6.9032,144.86,144.82,6.905]
[1723524622323,29.07028,144.89,144.79,14.21099002]
[1723524622519,45.25098,144.88,144.8,1.38098972]
[1723524622715,45.25098,144.88,144.79,12.83]
[1723524622918,45.25098,144.88,144.8,1.38098946]
[1723524623611,52.15328,144.88,144.8,1.38098946]
[1723524623943,52.15328,144.88,144.85,6.9036]
[1723524623944,45.0,144.88,144.85,6.9036]
[1723524624112,15.9893,144.89,144.85,6.9036]
[1723524628143,22.8911,144.89,144.85,6.9036]
[1723524629230,6.9027,144.87,144.78,15.6784]
[1723524629429,6.9032,144.86,144.82,6.9047]
[1723524629943,6.9028,144.87,144.82,6.9047]
[1723524630322,6.9032,144.86,144.82,6.9047]
[1723524631348,7.02829,144.87,144.82,6.9047]
[1723524631551,45.12549,144.86,144.82,6.9047]
[1723524633118,45.0,144.86,144.83,6.9045]
[1723524633324,6.9028,144.87,144.83,6.9045]
[1723524633549,22.8914,144.89,144.84,6.9039]
[1723524634444,6.9027,144.87,144.82,6.905]
[1723524634945,12.95549,144.87,144.79,12.83]
[1723524635161,45.12549,144.86,144.8,6.906]
[1723524635536,6.9043,144.84,144.79,6.9064]
[1723524636230,6.9043,144.84,144.8,6.906]
[1723524636563,45.0,144.86,144.82,6.9051]
[1723524636723,6.0977,144.9,144.81,12.83]
[1723524637048,6.9017,144.9,144.85,6.9035]
[1723524638446,22.8912,144.89,144.85,6.9035]